[Event "106th British-ch Major 2019"]
[Site "Torquay"]
[Date "2019.08.02"]
[Round "7.31"]
[White "Hilton, Tim"]
[Black "Gogia, Armaan"]
[Result "1/2-1/2"]
[ECO "E97"]
[WhiteElo "1892"]
[BlackElo "1754"]
[Annotator "NA"]
[PlyCount "44"]
[EventDate "2019.07.27"]
[EventType "swiss"]
[EventCountry "GBR"]
[SourceTitle "playchess.com"]
[Source "ChessBase"]
[SourceQuality "1"]
[TimeControl "40/5400+30:1800+30"]

1. d4 {[%emt 0:00:00]} Nf6 {[%emt 0:00:00]} 2. c4 {[%emt 0:00:00]} g6 {[%emt 0:00:10]} 3. Nc3 {[%emt 0:00:04]} Bg7 {[%emt 0:00:02]} 4. e4 {[%emt 0:00:06]} d6 {[%emt 0:00:01]} 5. Nf3 {[%emt 0:00:07]} O-O {[%emt 0:00:05]} 6. Be2 {[%emt 0:00:04]} e5 {[%emt 0:00:03]} 7. O-O {[%emt 0:00:07]} Nc6 {[%emt 0:00:15]} 8. Be3 {[%emt 0:00:06]} Ng4 {[%emt 0:01:36]} 9. Bg5 {[%emt 0:00:07]} f6 {[%emt 0:01:00]} 10. Bc1 {[%emt 0:00:05]} exd4 {[%emt 0:06:43]} 11. Nxd4 {[%emt 0:00:13]} Nge5 {[%emt 0:01:51]} 12. Be3 {[%emt 0:02:30]} Nxd4 {[%emt 0:05:06]} 13. Bxd4 {[%emt 0:02:30]} Be6 {[%emt 0:00:08]} 14. b3 {[%emt 0:01:55]} Nc6 {[%emt 0:02:52]} 15. Be3 {[%emt 0:05:13]} f5 {[%emt 0:01:32]} 16. exf5 {[%emt 0:01:51]} gxf5 {[%emt 0:01:17]} 17. Nd5 {[%emt 0:05:10]} Bxa1 {[%emt 0:03:00]} 18. Qxa1 {[%emt 0:00:05]} Bxd5 {[%emt 0:00:05]} 19. cxd5 {[%emt 0:00:04]} Ne5 {[%emt 0:00:14]} 20. f4 {[%emt 0:00:40]} Ng4 {[%emt 0:03:53]} 21. Bxg4 {[%emt 0:04:09]} fxg4 {[%emt 0:00:05]} 22. f5 {[%emt 0:01:08]} Qh4 {[%emt 0:04:40]} 1/2-1/2

[Event "106th British-ch Major 2019"]
[Site "Torquay"]
[Date "2019.08.02"]
[Round "7.32"]
[White "Sanitt, Ethan"]
[Black "Miller, George I"]
[Result "1-0"]
[ECO "A25"]
[WhiteElo "1752"]
[BlackElo "1891"]
[Annotator "NA"]
[PlyCount "125"]
[EventDate "2019.07.27"]
[EventType "swiss"]
[EventCountry "GBR"]
[SourceTitle "playchess.com"]
[Source "ChessBase"]
[SourceQuality "1"]
[TimeControl "40/5400+30:1800+30"]

1. c4 g6 {[%emt 0:00:32]} 2. g3 {[%emt 0:00:13]} Bg7 {[%emt 0:00:05]} 3. Bg2 {[%emt 0:00:08]} d6 {[%emt 0:00:29]} 4. Nc3 {[%emt 0:00:16]} e5 {[%emt 0:00:14]} 5. e4 {[%emt 0:00:10]} Nc6 {[%emt 0:00:14]} 6. Nge2 {[%emt 0:00:30]} Nge7 {[%emt 0:00:45]} 7. O-O {[%emt 0:00:30]} Bg4 {[%emt 0:00:45]} 8. h3 {[%emt 0:00:35]} Bxe2 {[%emt 0:00:21]} 9. Nxe2 {[%emt 0:01:59]} O-O {[%emt 0:00:10]} 10. d3 {[%emt 0:01:17]} f5 {[%emt 0:00:57]} 11. Rb1 {[%emt 0:04:59]} h6 {[%emt 0:03:06]} 12. b4 {[%emt 0:04:50]} Qd7 {[%emt 0:03:46]} 13. b5 {[%emt 0:05:22]} Nd8 {[%emt 0:00:13]} 14. Be3 {[%emt 0:01:48]} g5 {[%emt 0:06:30]} 15. f4 {[%emt 0:00:41]} Ne6 {[%emt 0:06:34]} 16. Qd2 {[%emt 0:02:56]} gxf4 {[%emt 0:01:57]} 17. gxf4 {[%emt 0:00:16]} exf4 {[%emt 0:00:34]} 18. Nxf4 {[%emt 0:01:14]} Nxf4 {[%emt 0:00:49]} 19. Bxf4 {[%emt 0:01:26]} fxe4 {[%emt 0:00:07]} 20. Bxh6 {[%emt 0:14:38]} Nf5 {[%emt 0:03:10]} 21. Be3 {[%emt 0:11:34]} exd3 {[%emt 0:03:38]} 22. Bxb7 {[%emt 0:12:28]} Nxe3 {[%emt 0:03:26]} 23. Qxe3 {[%emt 0:01:22]} Rxf1+ {[%emt 0:00:26]} 24. Rxf1 {[%emt 0:00:30]} Rf8 {[%emt 0:00:46]} 25. Bd5+ {[%emt 0:04:12]} Kh8 {[%emt 0:00:15]} 26. Qxd3 {[%emt 0:06:33]} Rxf1+ {[%emt 0:00:06]} 27. Kxf1 {[%emt 0:00:41]} Qe7 {[%emt 0:00:46]} 28. Qg6 {[%emt 0:05:43]} Qf6+ {[%emt 0:00:07]} 29. Qxf6 {[%emt 0:00:04]} Bxf6 {[%emt 0:00:07]} 30. Kf2 {[%emt 0:00:07]} Bd4+ {[%emt 0:00:58]} 31. Kf3 {[%emt 0:00:16]} Kg7 {[%emt 0:00:05]} 32. Ke4 {[%emt 0:00:19]} Bf2 {[%emt 0:00:54]} 33. Bb7 {[%emt 0:02:17]} Kf6 {[%emt 0:00:08]} 34. Kd5 {[%emt 0:00:25]} Bb6 {[%emt 0:05:06]} 35. Bc8 {[%emt 0:00:29]} Ba5 {[%emt 0:03:25]} 36. a4 Bb6 {[%emt 0:00:05]} 37. Bg4 {[%emt 0:00:13]} Ba5 {[%emt 0:00:24]} 38. h4 {[%emt 0:02:13]} Be1 {[%emt 0:01:16]} 39. h5 {[%emt 0:00:17]} Ba5 {[%emt 0:09:59]} 40. Be2 {[%emt 0:00:20]} Bb6 {[%emt 0:00:14]} 41. Kc6 {[%emt 0:00:27]} Kg5 {[%emt 0:00:37]} 42. Kb7 {[%emt 0:02:29]} Kh6 {[%emt 0:00:02]} 43. Ka6 {[%emt 0:00:40]} Bc5 {[%emt 0:00:31]} 44. Bf3 {[%emt 0:03:40]} Kg5 {[%emt 0:00:08]} 45. Kb7 {[%emt 0:01:33]} Bb6 {[%emt 0:00:07]} 46. Bd1 {[%emt 0:00:21]} Kh6 {[%emt 0:00:09]} 47. Kc6 {[%emt 0:08:35]} Ba5 {[%emt 0:00:56]} 48. Be2 {[%emt 0:00:29]} Kg5 {[%emt 0:00:18]} 49. c5 {[%emt 0:01:30]} dxc5 {[%emt 0:00:23]} 50. Bc4 {[%emt 0:01:24]} Kxh5 {[%emt 0:00:18]} 51. Kb7 {[%emt 0:00:13]} Bb6 {[%emt 0:00:05]} 52. Ka6 {[%emt 0:00:12]} c6 {[%emt 0:04:18]} 53. bxc6 {[%emt 0:00:09]} Kg6 {[%emt 0:00:19]} 54. Kb7 {[%emt 0:00:19]} Kf6 {[%emt 0:00:52]} 55. c7 {[%emt 0:00:06]} Bxc7 {[%emt 0:00:05]} 56. Kxc7 {[%emt 0:00:04]} Ke5 {[%emt 0:00:46]} 57. a5 {[%emt 0:01:29]} Kd4 {[%emt 0:00:33]} 58. Bg8 {[%emt 0:00:15]} c4 {[%emt 0:00:22]} 59. a6 {[%emt 0:00:16]} c3 {[%emt 0:00:07]} 60. Bh7 {[%emt 0:00:07]} Kc5 {[%emt 0:00:41]} 61. Kb7 {[%emt 0:00:11]} Kd6 {[%emt 0:00:10]} 62. Kxa7 {[%emt 0:00:40]} Kc7 {[%emt 0:00:07]} 63. Bf5 {[%emt 0:00:07]} 1-0

[Event "106th British-ch Major 2019"]
[Site "Torquay"]
[Date "2019.08.02"]
[Round "7.33"]
[White "Pattni, Kishan"]
[Black "Ingham, H William"]
[Result "1-0"]
[ECO "A22"]
[WhiteElo "1608"]
[BlackElo "1854"]
[Annotator "NA"]
[PlyCount "51"]
[EventDate "2019.07.27"]
[EventType "swiss"]
[EventCountry "GBR"]
[SourceTitle "playchess.com"]
[Source "ChessBase"]
[SourceQuality "1"]
[TimeControl "40/5400+30:1800+30"]

1. c4 {[%emt 0:02:22]} Nf6 {[%emt 0:00:09]} 2. Nc3 {[%emt 0:03:05]} d6 {[%emt 0:00:10]} 3. g3 {[%emt 0:00:16]} e5 {[%emt 0:00:10]} 4. Bg2 {[%emt 0:00:27]} c6 {[%emt 0:00:07]} 5. e4 {[%emt 0:01:29]} Be7 {[%emt 0:00:08]} 6. d3 {[%emt 0:00:10]} Nbd7 {[%emt 0:01:42]} 7. b4 {[%emt 0:03:08]} d5 {[%emt 0:04:02]} 8. exd5 {[%emt 0:02:33]} Bxb4 {[%emt 0:00:43]} 9. Bd2 {[%emt 0:02:17]} Bxc3 {[%emt 0:00:20]} 10. Bxc3 {[%emt 0:00:08]} cxd5 {[%emt 0:00:06]} 11. cxd5 {[%emt 0:00:36]} O-O {[%emt 0:00:11]} 12. Bb4 {[%emt 0:02:17]} Re8 {[%emt 0:00:29]} 13. Qb3 {[%emt 0:00:47]} Nb6 {[%emt 0:03:49]} 14. d6 {[%emt 0:02:54]} Be6 {[%emt 0:00:24]} 15. Qa3 {[%emt 0:01:18]} Bd5 {[%emt 0:01:39]} 16. f3 {[%emt 0:01:01]} Rc8 {[%emt 0:02:03]} 17. Rc1 {[%emt 0:02:48]} Bc6 {[%emt 0:08:52]} 18. Ne2 {[%emt 0:02:54]} Nfd5 {[%emt 0:07:30]} 19. Bc5 {[%emt 0:01:56]} Qg5 {[%emt 0:01:47]} 20. O-O {[%emt 0:08:56]} Ne3 {[%emt 0:12:59]} 21. f4 {[%emt 0:04:04]} exf4 {[%emt 0:00:12]} 22. Bxc6 {[%emt 0:00:26]} Rxc6 {[%emt 0:10:22]} 23. Bxe3 {[%emt 0:00:52]} fxe3 {[%emt 0:05:41]} 24. Rxc6 {[%emt 0:00:25]} bxc6 {[%emt 0:00:37]} 25. Qxa7 {[%emt 0:00:00]} Qh5 {[%emt 0:03:52]} 26. d7 {[%emt 0:03:46]} 1-0

[Event "106th British-ch Major 2019"]
[Site "Torquay"]
[Date "2019.08.02"]
[Round "7.34"]
[White "Hussain, Adam"]
[Black "May, Paul"]
[Result "1-0"]
[ECO "B06"]
[WhiteElo "1515"]
[BlackElo "1832"]
[Annotator "NA"]
[PlyCount "97"]
[EventDate "2019.07.27"]
[EventType "swiss"]
[EventCountry "GBR"]
[SourceTitle "playchess.com"]
[Source "ChessBase"]
[SourceQuality "1"]
[TimeControl "40/5400+30:1800+30"]

1. d4 {[%emt 0:00:00]} g6 {[%emt 0:00:00]} 2. Nc3 {[%emt 0:00:00]} Bg7 {[%emt 0:00:00]} 3. e4 {[%emt 0:00:00]} a6 {[%emt 0:00:09]} 4. f4 {[%emt 0:00:00]} b5 {[%emt 0:02:05]} 5. Nf3 {[%emt 0:00:54]} d6 {[%emt 0:01:14]} 6. Bd3 {[%emt 0:00:12]} Bb7 {[%emt 0:00:23]} 7. Be3 {[%emt 0:01:13]} Nd7 {[%emt 0:00:53]} 8. O-O {[%emt 0:01:02]} Nh6 {[%emt 0:06:18]} 9. Ng5 {[%emt 0:00:59]} Nf8 {[%emt 0:09:14]} 10. Ne2 {[%emt 0:06:16]} f6 {[%emt 0:01:32]} 11. Nh3 {[%emt 0:00:27]} Ng4 {[%emt 0:02:02]} 12. Bd2 {[%emt 0:00:32]} d5 {[%emt 0:13:12]} 13. e5 {[%emt 0:01:45]} f5 {[%emt 0:01:20]} 14. a4 {[%emt 0:01:12]} c6 {[%emt 0:06:28]} 15. Ng5 {[%emt 0:02:02]} h6 {[%emt 0:00:00]} 16. Nf3 {[%emt 0:02:15]} h5 {[%emt 0:08:01]} 17. Qe1 {[%emt 0:01:53]} Ne6 {[%emt 0:00:54]} 18. h3 {[%emt 0:00:30]} Nh6 {[%emt 0:00:15]} 19. Nh4 {[%emt 0:01:20]} Nf8 {[%emt 0:04:57]} 20. Qg3 {[%emt 0:00:16]} Rg8 {[%emt 0:00:32]} 21. Rf3 {[%emt 0:02:17]} e6 {[%emt 0:05:00]} 22. Bb4 {[%emt 0:00:31]} Nf7 {[%emt 0:01:03]} 23. Rff1 {[%emt 0:05:30]} g5 {[%emt 0:12:47]} 24. fxg5 {[%emt 0:01:39]} Nxg5 {[%emt 0:01:16]} 25. Nf4 {[%emt 0:00:35]} Kd7 {[%emt 0:08:13]} 26. Nxh5 {[%emt 0:04:19]} Nfh7 {[%emt 0:02:54]} 27. Nxf5 {[%emt 0:04:44]} Bh8 {[%emt 0:00:53]} 28. Ne7 {[%emt 0:01:28]} Ne4 {[%emt 0:06:03]} 29. Qxg8 {[%emt 0:00:27]} Qxg8 {[%emt 0:00:14]} 30. Nxg8 {[%emt 0:00:05]} Nhg5 {[%emt 0:03:22]} 31. Ngf6+ {[%emt 0:00:31]} Bxf6 {[%emt 0:00:34]} 32. Nxf6+ {[%emt 0:00:35]} Kc7 {[%emt 0:00:51]} 33. Nxe4 {[%emt 0:00:15]} dxe4 {[%emt 0:00:13]} 34. Bd6+ {[%emt 0:00:09]} Kd7 {[%emt 0:00:17]} 35. Be2 {[%emt 0:00:08]} Rg8 {[%emt 0:00:12]} 36. Bg4 {[%emt 0:00:22]} c5 {[%emt 0:01:04]} 37. axb5 {[%emt 0:00:19]} axb5 {[%emt 0:00:16]} 38. h4 {[%emt 0:00:17]} Nf3+ {[%emt 0:00:33]} 39. gxf3 {[%emt 0:01:28]} exf3 {[%emt 0:00:11]} 40. Ra7 {[%emt 0:02:48]} Rxg4+ {[%emt 0:00:35]} 41. Kf2 {[%emt 0:30:19]} Rg2+ {[%emt 0:30:45]} 42. Ke1 {[%emt 0:00:38]} Kc8 {[%emt 0:01:32]} 43. Rxb7 {[%emt 0:00:49]} Kxb7 {[%emt 0:00:29]} 44. Bxc5 {[%emt 0:00:08]} Rxc2 {[%emt 0:00:15]} 45. b4 {[%emt 0:00:07]} Kc6 {[%emt 0:02:49]} 46. Rxf3 {[%emt 0:00:18]} Rh2 {[%emt 0:00:16]} 47. Rf4 {[%emt 0:00:21]} Kd5 {[%emt 0:00:19]} 48. Kf1 {[%emt 0:00:07]} Ra2 {[%emt 0:00:00]} 49. Ke1 {[%emt 0:01:47]} 1-0

[Event "106th British-ch Major 2019"]
[Site "Torquay"]
[Date "2019.08.02"]
[Round "7.35"]
[White "Forster, James Connor C"]
[Black "Sheikh, Anum"]
[Result "1-0"]
[ECO "A55"]
[WhiteElo "1831"]
[BlackElo "1693"]
[Annotator "NA"]
[PlyCount "49"]
[EventDate "2019.07.27"]
[EventType "swiss"]
[EventCountry "GBR"]
[SourceTitle "playchess.com"]
[Source "ChessBase"]
[SourceQuality "1"]
[TimeControl "40/5400+30:1800+30"]

1. d4 {[%emt 0:00:00]} Nf6 {[%emt 0:00:00]} 2. c4 {[%emt 0:00:00]} d6 {[%emt 0:00:00]} 3. Nc3 {[%emt 0:00:45]} Nbd7 {[%emt 0:00:19]} 4. e4 {[%emt 0:02:19]} e5 {[%emt 0:00:15]} 5. Nf3 {[%emt 0:01:32]} Be7 {[%emt 0:00:29]} 6. Be2 {[%emt 0:00:38]} c6 {[%emt 0:00:35]} 7. O-O {[%emt 0:01:05]} O-O {[%emt 0:00:59]} 8. Qc2 {[%emt 0:01:27]} Qc7 {[%emt 0:00:36]} 9. Rd1 {[%emt 0:04:54]} a6 {[%emt 0:02:12]} 10. Bg5 {[%emt 0:00:30]} b5 {[%emt 0:00:30]} 11. cxb5 {[%emt 0:00:30]} cxb5 {[%emt 0:00:30]} 12. Rac1 {[%emt 0:00:30]} Qb8 {[%emt 0:00:30]} 13. dxe5 {[%emt 0:00:30]} dxe5 {[%emt 0:00:30]} 14. a3 {[%emt 0:00:30]} Bb7 {[%emt 0:00:30]} 15. Rxd7 {[%emt 0:00:30]} Nxd7 {[%emt 0:00:30]} 16. Bxe7 {[%emt 0:36:10]} Re8 {[%emt 0:26:56]} 17. Bg5 {[%emt 0:00:30]} Nb6 {[%emt 0:00:30]} 18. Qb3 {[%emt 0:00:30]} h6 {[%emt 0:00:30]} 19. Be3 {[%emt 0:09:45]} Qd8 {[%emt 0:16:12]} 20. a4 {[%emt 0:03:57]} Re6 {[%emt 0:17:21]} 21. axb5 {[%emt 0:00:30]} axb5 {[%emt 0:00:30]} 22. Bxb5 {[%emt 0:00:30]} Rg6 {[%emt 0:00:30]} 23. Nxe5 {[%emt 0:00:30]} Rf6 {[%emt 0:00:30]} 24. Be2 {[%emt 0:00:30]} Qe7 {[%emt 0:00:30]} 25. Ng4 {[%emt 0:00:30]} 1-0

[Event "106th British-ch Major 2019"]
[Site "Torquay"]
[Date "2019.08.03"]
[Round "8.1"]
[White "Clarke, Brandon Gi"]
[Black "Graham, David B"]
[Result "1-0"]
[ECO "C18"]
[WhiteElo "2433"]
[BlackElo "2162"]
[Annotator "ChessBase"]
[PlyCount "183"]
[EventDate "2019.07.27"]
[EventType "swiss"]
[EventCountry "GBR"]
[SourceTitle "playchess.com"]
[Source "ChessBase"]
[SourceQuality "1"]
[TimeControl "40/5400+30:1800+30"]

1. e4 {[%emt 0:00:00]} e6 {[%emt 0:00:00]} 2. d4 {[%emt 0:00:00]} d5 {[%emt 0:00:00]} 3. Nc3 {[%emt 0:00:00]} Bb4 {[%emt 0:00:00]} 4. e5 {[%emt 0:00:00]} Ne7 {[%emt 0:00:07]} 5. a3 {[%emt 0:00:08]} Bxc3+ {[%emt 0:00:05]} 6. bxc3 {[%emt 0:00:02]} c5 {[%emt 0:00:22]} 7. Qg4 {[%emt 0:00:07]} O-O {[%emt 0:00:12]} 8. Bd3 {[%emt 0:00:13]} f5 {[%emt 0:00:20]} 9. exf6 {[%emt 0:00:09]} Rxf6 {[%emt 0:00:04]} 10. Bg5 {[%emt 0:00:10]} Rf7 {[%emt 0:00:46]} 11. Qh5 {[%emt 0:00:12]} g6 {[%emt 0:01:09]} 12. Qd1 {[%emt 0:00:03]} Nbc6 {[%emt 0:01:09]} 13. Nf3 {[%emt 0:00:03]} Qa5 {[%emt 0:03:17]} 14. Bd2 {[%emt 0:01:01]} c4 {[%emt 0:01:00]} 15. Be2 {[%emt 0:00:06]} Bd7 {[%emt 0:01:20]} 16. O-O {[%emt 0:01:08]} Re8 {[%emt 0:03:25]} 17. Ng5 {[%emt 0:02:29]} Rf6 {[%emt 0:03:31]} 18. f4 {[%emt 0:02:45]} Nf5 {[%emt 0:05:15]} 19. Qe1 {[%emt 0:04:54]} Kg7 {[%emt 0:08:20]} 20. Nf3 {[%emt 0:09:40]} Nd8 {[%emt 0:06:43]} 21. Ne5 {[%emt 0:03:16]} Ba4 {[%emt 0:00:22]} 22. Ra2 {[%emt 0:01:04]} Nd6 {[%emt 0:07:47]} 23. Bf3 {[%emt 0:01:15]} Rff8 {[%emt 0:04:54]} 24. Nxg6 {[%emt 0:38:14]} Kxg6 {[%emt 0:09:59]} 25. Qg3+ {[%emt 0:07:35]} Kf7 {[%emt 0:00:30]} 26. Qg5 {[%emt 0:02:50]} Rg8 {[%emt 0:02:37]} 27. Bh5+ {[%emt 0:00:32]} Rg6 {[%emt 0:03:15]} 28. g4 {[%emt 0:16:12]} Nf5 {[%emt 0:24:33]} 29. gxf5 {[%emt 0:01:20]} exf5 {[%emt 0:00:06]} 30. Kf2 {[%emt 0:03:08]} Kg7 {[%emt 0:06:00]} 31. Bxg6 {[%emt 0:00:50]} hxg6 {[%emt 0:00:04]} 32. Rg1 {[%emt 0:00:24]} Re6 {[%emt 0:01:43]} 33. Rb2 {[%emt 0:01:44]} Bd7 {[%emt 0:01:47]} 34. Qh4 {[%emt 0:01:08]} b5 {[%emt 0:00:55]} 35. Re1 {[%emt 0:01:40]} Qc7 {[%emt 0:03:59]} 36. Rxe6 {[%emt 0:00:39]} Nxe6 {[%emt 0:00:42]} 37. Qe7+ {[%emt 0:00:02]} Kg8 {[%emt 0:00:48]} 38. Rb1 {[%emt 0:03:21]} Qd8 {[%emt 0:01:03]} 39. Qxd8+ {[%emt 0:00:15]} Nxd8 {[%emt 0:00:02]} 40. a4 {[%emt 0:00:26]} a6 {[%emt 0:00:20]} 41. axb5 {[%emt 0:01:17]} Bxb5 {[%emt 0:00:10]} 42. Bc1 {[%emt 0:00:36]} Kf7 {[%emt 0:11:04]} 43. Ba3 {[%emt 0:00:35]} Ne6 {[%emt 0:00:28]} 44. Bd6 {[%emt 0:00:29]} g5 {[%emt 0:01:21]} 45. Re1 {[%emt 0:02:42]} gxf4 {[%emt 0:02:06]} 46. h4 {[%emt 0:00:52]} Ba4 {[%emt 0:01:41]} 47. Rc1 {[%emt 0:04:41]} Kf6 {[%emt 0:08:17]} 48. Kf3 {[%emt 0:00:41]} Be8 {[%emt 0:00:50]} 49. Bxf4 {[%emt 0:00:45]} a5 {[%emt 0:00:08]} 50. Rb1 {[%emt 0:01:39]} a4 {[%emt 0:01:19]} 51. Kg3 {[%emt 0:01:41]} a3 {[%emt 0:03:00]} 52. Ra1 {[%emt 0:01:13]} Ba4 {[%emt 0:00:27]} 53. Ra2 {[%emt 0:00:14]} Kg6 {[%emt 0:01:47]} 54. Bd6 {[%emt 0:01:09]} Kh5 {[%emt 0:00:37]} 55. Bxa3 {[%emt 0:01:33]} f4+ {[%emt 0:00:10]} 56. Kf3 {[%emt 0:00:14]} Be8 {[%emt 0:00:28]} 57. Bc1 {[%emt 0:09:31]} Kxh4 {[%emt 0:00:42]} 58. Ra6 {[%emt 0:00:42]} Bh5+ {[%emt 0:00:24]} 59. Kf2 {[%emt 0:00:15]} Ng5 {[%emt 0:00:11]} 60. Bxf4 {[%emt 0:00:56]} Ne4+ {[%emt 0:00:15]} 61. Ke3 {[%emt 0:00:37]} Nxc3 {[%emt 0:00:34]} 62. Rh6 {[%emt 0:08:05]} Kg4 {[%emt 0:00:42]} 63. Bc7 {[%emt 0:00:24]} Kg5 {[%emt 0:01:09]} 64. Rd6 {[%emt 0:01:08]} Nd1+ {[%emt 0:01:24]} 65. Kd2 {[%emt 0:00:03]} c3+ {[%emt 0:01:13]} 66. Kc1 {[%emt 0:00:34]} Ne3 {[%emt 0:00:59]} 67. Ba5 {[%emt 0:00:48]} Bf3 {[%emt 0:02:01]} 68. Bxc3 {[%emt 0:00:08]} Nc4 {[%emt 0:00:28]} 69. Rd8 {[%emt 0:00:25]} Be4 {[%emt 0:00:17]} 70. Rf8 {[%emt 0:00:34]} Kg6 {[%emt 0:00:18]} 71. Bb4 {[%emt 0:00:33]} Kg7 {[%emt 0:00:21]} 72. Rf2 {[%emt 0:00:37]} Kg6 {[%emt 0:00:27]} 73. Rf8 {[%emt 0:00:53]} Kg7 {[%emt 0:00:04]} 74. Kb1 {[%emt 0:00:43]} Kg6 {[%emt 0:00:38]} 75. Bc5 {[%emt 0:00:27]} Kg7 {[%emt 0:00:21]} 76. Rf2 {[%emt 0:00:13]} Kg6 {[%emt 0:00:30]} 77. Ka2 {[%emt 0:00:10]} Kg5 {[%emt 0:01:05]} 78. Kb3 {[%emt 0:00:07]} Kg4 {[%emt 0:00:13]} 79. c3 {[%emt 0:00:21]} Kg3 {[%emt 0:00:13]} 80. Rf8 {[%emt 0:00:04]} Bf3 {[%emt 0:00:23]} 81. Kb4 {[%emt 0:00:27]} Kf2 {[%emt 0:00:13]} 82. Re8 {[%emt 0:01:14]} Nd2 {[%emt 0:01:23]} 83. Bf8 {[%emt 0:00:59]} Be2 {[%emt 0:01:06]} 84. Bh6 {[%emt 0:00:41]} Ne4 {[%emt 0:00:19]} 85. c4 {[%emt 0:00:38]} Nd6 {[%emt 0:01:19]} 86. Rf8+ {[%emt 0:00:37]} Ke1 {[%emt 0:00:20]} 87. c5 {[%emt 0:00:23]} Nb5 {[%emt 0:00:20]} 88. Bg7 {[%emt 0:00:42]} Kd2 {[%emt 0:00:54]} 89. c6 {[%emt 0:00:11]} Nc7 {[%emt 0:00:31]} 90. Be5 {[%emt 0:00:22]} Ne6 {[%emt 0:00:25]} 91. Rf2 {[%emt 0:00:51]} Kd3 {[%emt 0:00:29]} 92. Rxe2 {[%emt 0:00:28]} 1-0

[Event "106th British-ch Major 2019"]
[Site "Torquay"]
[Date "2019.08.03"]
[Round "8.2"]
[White "Lentzos, Ioanis"]
[Black "Taylor, Adam A"]
[Result "1/2-1/2"]
[ECO "A36"]
[WhiteElo "2043"]
[BlackElo "2168"]
[Annotator "NA"]
[PlyCount "43"]
[EventDate "2019.07.27"]
[EventType "swiss"]
[EventCountry "GBR"]
[SourceTitle "playchess.com"]
[Source "ChessBase"]
[SourceQuality "1"]
[TimeControl "40/5400+30:1800+30"]

1. c4 {[%emt 0:00:00]} c5 {[%emt 0:00:00]} 2. Nc3 {[%emt 0:00:00]} Nc6 {[%emt 0:00:00]} 3. g3 {[%emt 0:00:00]} g6 {[%emt 0:00:00]} 4. Bg2 {[%emt 0:00:00]} Bg7 {[%emt 0:00:00]} 5. a3 {[%emt 0:00:00]} e6 {[%emt 0:09:38]} 6. b4 {[%emt 0:02:09]} Nxb4 {[%emt 0:17:03]} 7. axb4 {[%emt 0:00:10]} cxb4 {[%emt 0:00:02]} 8. d4 {[%emt 0:00:19]} bxc3 {[%emt 0:00:08]} 9. e3 {[%emt 0:00:35]} Ne7 {[%emt 0:01:06]} 10. Ne2 {[%emt 0:03:55]} O-O {[%emt 0:01:41]} 11. Nxc3 {[%emt 0:02:16]} d6 {[%emt 0:09:19]} 12. O-O {[%emt 0:07:34]} e5 {[%emt 0:12:49]} 13. Nb5 {[%emt 0:27:47]} exd4 {[%emt 0:01:09]} 14. exd4 {[%emt 0:00:10]} Be6 {[%emt 0:09:18]} 15. Ra4 {[%emt 0:09:04]} Rc8 {[%emt 0:12:10]} 16. d5 {[%emt 0:03:31]} Bd7 {[%emt 0:00:46]} 17. Rxa7 {[%emt 0:01:49]} Bxb5 {[%emt 0:05:04]} 18. cxb5 {[%emt 0:00:12]} Qb6 {[%emt 0:00:04]} 19. Be3 {[%emt 0:00:12]} Qxb5 {[%emt 0:01:03]} 20. Qb1 {[%emt 0:00:08]} Qxb1 {[%emt 0:06:24]} 21. Rxb1 {[%emt 0:00:05]} Rc2 {[%emt 0:00:08]} 22. Raxb7 {[%emt 0:09:22]} 1/2-1/2

[Event "106th British-ch Major 2019"]
[Site "Torquay"]
[Date "2019.08.03"]
[Round "8.3"]
[White "Balaji, Aaravamudhan"]
[Black "Payne, Matthew J"]
[Result "1-0"]
[ECO "E73"]
[WhiteElo "2034"]
[BlackElo "2168"]
[Annotator "NA"]
[PlyCount "77"]
[EventDate "2019.07.27"]
[EventType "swiss"]
[EventCountry "GBR"]
[SourceTitle "playchess.com"]
[Source "ChessBase"]
[SourceQuality "1"]
[TimeControl "40/5400+30:1800+30"]

1. d4 {[%emt 0:00:00]} Nf6 {[%emt 0:00:00]} 2. c4 {[%emt 0:00:00]} g6 {[%emt 0:00:00]} 3. Nc3 {[%emt 0:00:00]} Bg7 {[%emt 0:00:00]} 4. e4 {[%emt 0:00:00]} d6 {[%emt 0:00:00]} 5. Be2 {[%emt 0:00:00]} O-O {[%emt 0:00:10]} 6. Be3 {[%emt 0:00:00]} e5 {[%emt 0:00:07]} 7. d5 {[%emt 0:00:04]} a5 {[%emt 0:00:15]} 8. g4 {[%emt 0:00:04]} Na6 {[%emt 0:00:09]} 9. g5 {[%emt 0:00:14]} Nd7 {[%emt 0:03:24]} 10. h4 {[%emt 0:00:10]} Nac5 {[%emt 0:13:20]} 11. h5 {[%emt 0:03:48]} f5 {[%emt 0:17:01]} 12. gxf6 {[%emt 0:00:50]} Nxf6 {[%emt 0:00:30]} 13. hxg6 {[%emt 0:10:16]} hxg6 {[%emt 0:00:14]} 14. Bf3 {[%emt 0:06:27]} c6 {[%emt 0:06:26]} 15. Qe2 {[%emt 0:08:16]} cxd5 {[%emt 0:04:56]} 16. cxd5 {[%emt 0:02:51]} b6 {[%emt 0:06:09]} 17. Qd2 {[%emt 0:16:07]} Ng4 {[%emt 0:05:26]} 18. Bg5 {[%emt 0:04:44]} Nd3+ {[%emt 0:03:25]} 19. Kf1 {[%emt 0:01:10]} Qd7 {[%emt 0:00:08]} 20. Nd1 {[%emt 0:05:12]} Ba6 {[%emt 0:01:07]} 21. Rh4 {[%emt 0:03:32]} Rxf3 {[%emt 0:26:25]} 22. Nxf3 {[%emt 0:00:12]} Ndxf2+ {[%emt 0:00:15]} 23. Kg1 {[%emt 0:04:36]} Nxe4 {[%emt 0:00:17]} 24. Qg2 {[%emt 0:00:41]} Nxg5 {[%emt 0:01:11]} 25. Nxg5 {[%emt 0:00:55]} Nf6 {[%emt 0:02:59]} 26. Ne6 {[%emt 0:03:02]} Bd3 {[%emt 0:00:23]} 27. Ne3 {[%emt 0:07:23]} Rc8 {[%emt 0:00:50]} 28. Rd1 {[%emt 0:03:47]} Qb5 {[%emt 0:00:35]} 29. Qd2 {[%emt 0:02:06]} e4 {[%emt 0:03:39]} 30. Qg2 {[%emt 0:01:27]} Kf7 {[%emt 0:02:28]} 31. Nxg7 {[%emt 0:02:18]} Qc5 {[%emt 0:00:04]} 32. Qg5 {[%emt 0:02:34]} Kxg7 {[%emt 0:00:28]} 33. Rh6 {[%emt 0:00:03]} Qxe3+ 34. Qxe3 {[%emt 0:00:02]} Ng4 {[%emt 0:02:22]} 35. Qh3 {[%emt 0:00:12]} Be2 {[%emt 0:00:26]} 36. Rh7+ {[%emt 0:00:29]} Kf6 {[%emt 0:00:01]} 37. Re1 {[%emt 0:00:17]} Bf3 {[%emt 0:00:10]} 38. Qg3 {[%emt 0:00:06]} Ne5 {[%emt 0:00:17]} 39. Qf4# {[%emt 0:00:02]} 1-0

[Event "106th British-ch Major 2019"]
[Site "Torquay"]
[Date "2019.08.03"]
[Round "8.4"]
[White "Turner, Max N"]
[Black "Cleary, Mark"]
[Result "1-0"]
[ECO "A87"]
[WhiteElo "2026"]
[BlackElo "2023"]
[Annotator "NA"]
[PlyCount "37"]
[EventDate "2019.07.27"]
[EventType "swiss"]
[EventCountry "GBR"]
[SourceTitle "playchess.com"]
[Source "ChessBase"]
[SourceQuality "1"]
[TimeControl "40/5400+30:1800+30"]

1. d4 {[%emt 0:00:00]} f5 {[%emt 0:00:00]} 2. g3 {[%emt 0:00:00]} Nf6 {[%emt 0:00:00]} 3. Bg2 {[%emt 0:00:00]} g6 {[%emt 0:00:03]} 4. Nf3 {[%emt 0:00:00]} Bg7 {[%emt 0:00:10]} 5. O-O {[%emt 0:00:08]} O-O {[%emt 0:00:18]} 6. c4 {[%emt 0:00:06]} d6 {[%emt 0:00:08]} 7. Nc3 {[%emt 0:00:05]} Qe8 {[%emt 0:00:13]} 8. d5 {[%emt 0:01:34]} Na6 {[%emt 0:00:53]} 9. Rb1 {[%emt 0:01:00]} Nc5 {[%emt 0:01:04]} 10. Be3 {[%emt 0:00:31]} e5 {[%emt 0:14:33]} 11. dxe6 {[%emt 0:02:50]} Bxe6 {[%emt 0:04:07]} 12. b3 {[%emt 0:02:14]} Nfe4 {[%emt 0:03:03]} 13. Nxe4 {[%emt 0:03:14]} Nxe4 {[%emt 0:00:28]} 14. Bd4 {[%emt 0:02:22]} Nc3 {[%emt 0:01:41]} 15. Bxc3 {[%emt 0:00:30]} Bxc3 {[%emt 0:00:09]} 16. Nd4 {[%emt 0:02:44]} Bc8 {[%emt 0:13:54]} 17. Nb5 {[%emt 0:02:35]} Ba5 {[%emt 0:00:25]} 18. Nxd6 {[%emt 0:01:33]} Qe7 {[%emt 0:13:08]} 19. Nxc8 {[%emt 0:00:52]} 1-0